Department Family,Entity,Payment Date,Expense Type,Expense Area,Supplier,System Transaction Number,Amount
MOJ,NOMS,10/1/2010,Rates and Ground Rents,Estates Capacity,DURHAM CITY COUNCIL,3472465,45559.36
MOJ,NOMS,10/1/2010,Rates and Ground Rents,Estates Capacity,DURHAM COUNTY COUNCIL,3472467,28152
MOJ,NOMS,10/11/2010,Rates and Ground Rents,Estates Capacity,FENLAND DISTRICT COUNCIL,3472433,44298
MOJ,NOMS,10/11/2010,Rates and Ground Rents,Estates Capacity,CITY OF WAKEFIELD,3472331,36939.35
MOJ,NOMS,10/11/2010,Rates and Ground Rents,Estates Capacity,KINGSTON-UPON-HULL CITY COUNCIL,3472429,29588.58
MOJ,NOMS,10/11/2010,Rates and Ground Rents,Estates Capacity,WARRINGTON BOROUGH COUNCIL,3472333,27945
MOJ,NOMS,10/23/2010,Rates and Ground Rents,Estates Capacity,MEDWAY COUNCIL,3543204,53216.15
MOJ,NOMS,10/29/2010,Rates and Ground Rents,Phoenix Shared Service Centre,DANMERC,3483896,226681
MOJ,NOMS,10/29/2010,Rates and Ground Rents,Estates Capacity,GREENWICH COUNCIL,3472444,86366
MOJ,NOMS,10/29/2010,Rates and Ground Rents,Estates Capacity,MILTON KEYNES COUNCIL,3472363,62100
MOJ,NOMS,10/29/2010,Rates and Ground Rents,Estates Capacity,LB OF HAMMERSMITH AND FULHAM,3495013,57722
MOJ,NOMS,10/29/2010,Rates and Ground Rents,Estates Capacity,CHERWELL DISTRICT COUNCIL,3472451,55476
MOJ,NOMS,10/29/2010,Rates and Ground Rents,Estates Capacity,REIGATE & BANSTEAD BOROUGH COUNCIL,3508304,54234
MOJ,NOMS,10/29/2010,Rates and Ground Rents,Estates Capacity,MANCHESTER CITY COUNCIL,3518493,51316.4
MOJ,NOMS,10/29/2010,Rates and Ground Rents,Estates Capacity,NORTHUMBERLAND COUNTY COUNCIL,3472413,50508
MOJ,NOMS,10/29/2010,Rates and Ground Rents,Estates Capacity,HUNTINGDONSHIRE DISTRICT COUNCIL,3495015,46782
MOJ,NOMS,10/29/2010,Rates and Ground Rents,Estates Capacity,SWALE BOROUGH COUNCIL,3472344,44712
MOJ,NOMS,10/29/2010,Rates and Ground Rents,Estates Capacity,PETERBOROUGH CITY COUNCIL,3472305,43470
MOJ,NOMS,10/29/2010,Rates and Ground Rents,Estates Capacity,LIVERPOOL CITY COUNCIL,3478615,43056
MOJ,NOMS,10/29/2010,Rates and Ground Rents,Estates Capacity,DONCASTER MET DIST COUNCIL,3472423,42927.39
MOJ,NOMS,10/29/2010,Rates and Ground Rents,Estates Capacity,LONDON BOROUGH OF ISLINGTON.,3472762,42315
MOJ,NOMS,10/29/2010,Rates and Ground Rents,Estates Capacity,LIVERPOOL CITY COUNCIL,3475192,40158
MOJ,NOMS,10/29/2010,Rates and Ground Rents,Estates Capacity,LANCASTER CITY COUNCIL,3495020,39537
MOJ,NOMS,10/29/2010,Rates and Ground Rents,Estates Capacity,EAST RIDING OF YORKSHIRE COUNCIL,3485218,39330
MOJ,NOMS,10/29/2010,Rates and Ground Rents,Estates Capacity,LONDON BOROUGH OF HOUNSLOW,3472763,38843
MOJ,NOMS,10/29/2010,Rates and Ground Rents,Estates Capacity,WANDSWORTH BOROUGH COUNCIL,3472332,38843
MOJ,NOMS,10/29/2010,Rates and Ground Rents,Estates Capacity,BROMSGROVE DISTRICT COUNCIL,3472765,37467
MOJ,NOMS,10/29/2010,Rates and Ground Rents,Estates Capacity,BIRMINGHAM CITY COUNCIL,3508297,37053
MOJ,NOMS,10/29/2010,Rates and Ground Rents,Estates Capacity,SPELTHORNE BOROUGH COUNCIL,3472297,36914.85
MOJ,NOMS,10/29/2010,Rates and Ground Rents,Estates Capacity,DACORUM BOROUGH COUNCIL,3472419,36564.76
MOJ,NOMS,10/29/2010,Rates and Ground Rents,Estates Capacity,CHORLEY BOROUGH COUNCIL,3495011,35886.25
MOJ,NOMS,10/29/2010,Rates and Ground Rents,Estates Capacity,BRECKLAND DISTRICT COUNCIL,3472479,35397
MOJ,NOMS,10/29/2010,Rates and Ground Rents,Estates Capacity,SURREY HEATH BOROUGH COUNCIL,3472342,34983
MOJ,NOMS,10/29/2010,Rates and Ground Rents,Estates Capacity,STOCKTON-ON-TEES BOROUGH COUNCIL,3472303,33682.05
MOJ,NOMS,10/29/2010,Rates and Ground Rents,Estates Capacity,SWALE BOROUGH COUNCIL,3472345,32913
MOJ,NOMS,10/29/2010,Rates and Ground Rents,Estates Capacity,DONCASTER MBC,3472424,32590.46
MOJ,NOMS,10/29/2010,Rates and Ground Rents,Estates Capacity,EAST STAFFORDSHIRE BOROUGH COUNCIL,3472472,31878
MOJ,NOMS,10/29/2010,Rates and Ground Rents,Estates Capacity,WYCHAVON DISTRICT COUNCIL,3472351,31257
MOJ,NOMS,10/29/2010,Rates and Ground Rents,Estates Capacity,RUTLAND DISTRICT COUNCIL,3472408,29187
MOJ,NOMS,10/29/2010,Rates and Ground Rents,Estates Capacity,SALFORD CITY COUNCIL,3528179,29178.77
MOJ,NOMS,10/29/2010,Rates and Ground Rents,Estates Capacity,ST EDMUNDSBURY BOROUGH COUNCIL,3472302,28976.84
MOJ,NOMS,10/29/2010,Rates and Ground Rents,Estates Capacity,WIGAN COUNCIL,3532826,28152
MOJ,NOMS,10/29/2010,Rates and Ground Rents,Estates Capacity,CHORLEY BOROUGH COUNCIL,3495010,27738
MOJ,NOMS,10/29/2010,Rates and Ground Rents,Estates Capacity,BRIDGEND COUNTY BOROUGH COUNCIL,3495009,27607.5
MOJ,NOMS,10/1/2010,Contracted-out Probation Trusts,South East DOMS Office,SURREY & SUSSEX PROBATION TRUST,3719268,3250000
MOJ,NOMS,10/1/2010,Contracted-out Probation Trusts,Dorset Probation Trust,DORSET PROBATION TRUST,3718531,764391
MOJ,NOMS,10/1/2010,Contracted-out Other Services,National Operations Group,HOME GROUP LTD (STONHAM),3699001,224139
MOJ,NOMS,10/1/2010,WIP - Acquisitions,Estates Capacity,CARILLION JM LIMITED,3691010,98162.9
MOJ,NOMS,10/1/2010,Contracted-out Probation Trusts,South East DOMS Office,THAMES VALLEY PROBATION TRUST,3720584,93829.75
MOJ,NOMS,10/1/2010,"Books, Stationery & IT Consumables",Offender Employment Skills & Services Group,CARPENTER LTD,3720876,62208.64
MOJ,NOMS,10/1/2010,"New structural works, structural maintenance and equipment",East of England Regional NOMS Office,DELTA DESIGN SYSTEMS LTD,3719208,48306.65
MOJ,NOMS,10/1/2010,Training and Further Education Courses,Learning and Development Group,UNIVERSITY OF PORTSMOUTH,3714111,46062.5
MOJ,NOMS,10/1/2010,WIP - Professional Fees,Estates Capacity,ATKINS LTD,3719054,43284.46
MOJ,NOMS,10/1/2010,Contracted-out Probation Trusts,Wellingborough,NORTHAMPTONSHIRE PROBATION TRUST,3719119,39584.4
MOJ,NOMS,10/1/2010,Counselling & Advisory Costs,Birmingham,SOUTH STAFFORDSHIRE AND SHROPSHIRE HEALTHCARE NHS FOUNDATION TRUST,3717573,38739.5
MOJ,NOMS,10/1/2010,Rates and Ground Rents,Director of Finance Office,KNIGHT FRANK LLP,3680998,32250
MOJ,NOMS,10/1/2010,Contracted-out Probation Boards,Onley,NORTHAMPTONSHIRE PROBATION TRUST,3719120,28203.29
MOJ,NOMS,10/1/2010,Contracted-out Probation Trusts,Brixton,LONDON PROBATION TRUST,3689406,28001.43
MOJ,NOMS,10/1/2010,Specialist Contractors,Procurement Group,SIMMONS & SIMMONS,3718516,26141.14
MOJ,NOMS,10/1/2010,Contracted-out Probation Boards,Morton Hall,LINCOLNSHIRE PROBATION TRUST,3692973,25466.38
MOJ,NOMS,10/1/2010,Contracted-out Probation Boards,Highpoint,SUFFOLK COUNTY COUNCIL,,-25379.39
MOJ,NOMS,10/4/2010,Contracted-out Probation Trusts,Greater Manchester Probation Trust,GREATER MANCHESTER PROBATION TRUST,3721567,4109070
MOJ,NOMS,10/4/2010,Specialist Contractors,Director of HRs Office & Strategic Planning,PARITY RESOURCES LTD,3672761,396526.75
MOJ,NOMS,10/4/2010,Specialist Contractors,Director of HRs Office & Strategic Planning,PARITY RESOURCES LTD,3637894,314470.94
MOJ,NOMS,10/4/2010,Consumables,Procurement Group,JIANGSU SUNSHINE IMPORT & EXPORT CO LTD,3721525,106934.06
MOJ,NOMS,10/4/2010,Specialist Contractors,Director of HRs Office & Strategic Planning,PARITY RESOURCES LTD,3708374,76332.11
MOJ,NOMS,10/4/2010,Contracted-out Probation Trusts,South East DOMS Office,KENT PROBATION TRUST,3721164,76000
MOJ,NOMS,10/4/2010,VISA Costs,Phoenix Shared Service Centre,ARVAL UK LTD,3721444,60599.68
MOJ,NOMS,10/4/2010,WIP - Acquisitions,Estates Capacity,CRISPIN & BORST LTD,3699224,58551.43
MOJ,NOMS,10/4/2010,VISA Costs,Phoenix Shared Service Centre,ARVAL UK LTD,3721445,54880.06
MOJ,NOMS,10/4/2010,WIP - Professional Fees,Estates Capacity,AEDAS ARCHITECTS LTD,3635134,44173.96
MOJ,NOMS,10/4/2010,Contracted-out Probation Trusts,Whatton,NOTTINGHAMSHIRE PROBATION TRUST,3721888,40897.78
MOJ,NOMS,10/4/2010,WIP - Professional Fees,Estates Capacity,AEDAS ARCHITECTS LTD,3711733,39127.5
MOJ,NOMS,10/4/2010,Legal Representation,Director of Probation's Office,TREASURY SOLICITORS,3680024,34769.37
MOJ,NOMS,10/4/2010,Training and Further Education Courses,Learning and Development Group,UNIVERSITY OF WALES CAMPUS NEWPORT,3721362,29727.5
MOJ,NOMS,10/4/2010,Contracted-out Probation Trusts,Risley,CHESHIRE PROBATION TRUST,3721909,28509.38
MOJ,NOMS,10/4/2010,WIP - Professional Fees,Estates Capacity,AEDAS ARCHITECTS LTD,3717399,28339.66
MOJ,NOMS,10/4/2010,Other - Acquisitions,Belmarsh,UNILINK COMPUTERS PLC,3639109,26506.53
MOJ,NOMS,10/4/2010,Contracted-out Probation Trusts,Ashwell,LEICESTERSHIRE&RUTLAND PROBATION TRUST,3608153,25257.49
MOJ,NOMS,10/4/2010,WIP - Professional Fees,Estates Capacity,AEDAS ARCHITECTS LTD,3717400,-44173.96
MOJ,NOMS,10/5/2010,Contracted-out Probation Trusts,South Yorkshire Probation Trust,SOUTH YORKSHIRE PROBATION TRUST,3719194,2117987.66
MOJ,NOMS,10/5/2010,VISA Costs,Phoenix Shared Service Centre,COMPANY BARCLAYCARD,3722239,1771818.48
MOJ,NOMS,10/5/2010,Payments to voluntary Organisations,Business and Service Development Group,PRISONERS ABROAD,3721598,125000
MOJ,NOMS,10/5/2010,Gas,Aylesbury,CORONA ENERGY RETAIL 4 LTD,3699931,95195.84
MOJ,NOMS,10/5/2010,Travel - Non-Taxable,Phoenix HR,CARLSON WAGONLIT TRAVEL,3722460,62087.63
MOJ,NOMS,10/5/2010,Contracted-out Probation Trusts,Leyhill,AVON AND SOMERSET PROBATION TRUST,3706136,52033.64
MOJ,NOMS,10/5/2010,Clothing,Offender Employment Skills & Services Group,JIANGSU SAINTY CORP LTD,3722351,51350.66
MOJ,NOMS,10/5/2010,Clothing,Offender Employment Skills & Services Group,JIANGSU SAINTY CORP LTD,3722415,39184.32
MOJ,NOMS,10/5/2010,Counselling & Advisory Costs,Eastwood Park,AVON & WILTSHIRE MENTAL HEALTH PARTNERSHIP N H S TRUST,3721917,37400
MOJ,NOMS,10/5/2010,WIP - Acquisitions,Estates Capacity,MAYBOURNE & RUSSELL LTD,3673111,32546.33
MOJ,NOMS,10/5/2010,Counselling & Advisory Costs,Bristol,AVON & WILTSHIRE MENTAL HEALTH PARTNERSHIP N H S TRUST,3721914,28760
MOJ,NOMS,10/5/2010,Contracted-out Probation Boards,Styal,CHESHIRE PROBATION TRUST,3721908,26474.45
MOJ,NOMS,10/6/2010,Contract IT Maintenance,MoJ ICT,HP ENTERPRISE SERVICES UK LTD,3721923,919356.3
MOJ,NOMS,10/6/2010,WIP - Acquisitions,MoJ ICT,HP ENTERPRISE SERVICES UK LTD,3678112,663089.15
MOJ,NOMS,10/6/2010,WIP - Acquisitions,MoJ ICT,HP ENTERPRISE SERVICES UK LTD,3711089,432656.1
MOJ,NOMS,10/6/2010,WIP - Acquisitions,Estates Capacity,BRIDGEND CUSTODIAL SERVICES LTD,3725334,413477.8
MOJ,NOMS,10/6/2010,WIP - Acquisitions,Estates Capacity,INTERSERVE PROJECT SERVICES LTD,3722992,400449.4
MOJ,NOMS,10/6/2010,Counselling & Advisory Costs,Chelmsford,ESSEX COUNTY COUNCIL,3714911,345815
MOJ,NOMS,10/6/2010,Prison Shop Cost of Sales,Chief Operating Officers Office,EXEL EUROPE1 LTD,3725372,331483.68
MOJ,NOMS,10/6/2010,Contracted-out operation of prisons and detention centres,Parc,BRIDGEND CUSTODIAL SERVICES LTD,3724288,296467.2
MOJ,NOMS,10/6/2010,WIP - Acquisitions,Estates Capacity,KIER REGIONAL LTD,3725682,293456.25
MOJ,NOMS,10/6/2010,WIP - Acquisitions,Estates Capacity,ISG REGIONS LTD,3725357,224120.68
MOJ,NOMS,10/6/2010,WIP - Acquisitions,Estates Capacity,CARILLION CONSTRUCTION LTD,3726318,220929.38
MOJ,NOMS,10/6/2010,WIP - Acquisitions,Estates Capacity,INTERSERVE PROJECT SERVICES LTD,3725768,218014.8
MOJ,NOMS,10/6/2010,Prison Shop Cost of Sales (No VAT),Chief Operating Officers Office,EXEL EUROPE1 LTD,3725372,185328.2
MOJ,NOMS,10/6/2010,Contract IT Maintenance,MoJ ICT,HP ENTERPRISE SERVICES UK LTD,3726268,121306.66
MOJ,NOMS,10/6/2010,WIP - Acquisitions,MoJ ICT,HP ENTERPRISE SERVICES UK LTD,3706017,117244.73
MOJ,NOMS,10/6/2010,Contracted-out Resettlement Services,NOMS CFO,A4E CONSULTING LTD,3724918,115896.32
MOJ,NOMS,10/6/2010,Contracted-out operation of prisons and detention centres,Parc,BRIDGEND CUSTODIAL SERVICES LTD,3724977,98100
MOJ,NOMS,10/6/2010,Contracted-out operation of prisons and detention centres,Parc,BRIDGEND CUSTODIAL SERVICES LTD,3724975,79488
MOJ,NOMS,10/6/2010,Contracted-out operation of prisons and detention centres,Parc,BRIDGEND CUSTODIAL SERVICES LTD,3724978,74370
MOJ,NOMS,10/6/2010,Contracted-out operation of prisons and detention centres,Dovegate,MORETON PRISON SERVICES LTD,3722943,62640
MOJ,NOMS,10/6/2010,Contract IT Maintenance,MoJ ICT,HP ENTERPRISE SERVICES UK LTD,3726269,45538.11
MOJ,NOMS,10/6/2010,Recruitment,Organisational Development Group,HAMPSHIRE CONSTABULARY,3720290,39315
MOJ,NOMS,10/6/2010,Water and Sewage,Liverpool,UNITED UTILITIES WATER PLC,3726512,36484
MOJ,NOMS,10/6/2010,Water and Sewage,Risley,UNITED UTILITIES WATER PLC,3726546,36468.78
MOJ,NOMS,10/6/2010,Water and Sewage,Manchester,UNITED UTILITIES WATER PLC,3726519,32512.43
MOJ,NOMS,10/6/2010,Specialist Contractors,Estates Capacity,KNIGHT FRANK LLP,3695317,32318.02
MOJ,NOMS,10/6/2010,Water and Sewage,Kirkham,UNITED UTILITIES WATER PLC,3726534,28536.9
MOJ,NOMS,10/6/2010,Contracted-out operation of prisons and detention centres,Altcourse,FAZAKERLEY PRISON SERVICES LTD,3722805,27472.42
MOJ,NOMS,10/6/2010,Contracted-out Medical services,Whitemoor,NORFOLK & WAVENEY MENTAL HEALTH,3723403,27206.06
MOJ,NOMS,10/6/2010,Clothing,Sheppey Clustered Services,DAVE PERKINS COM LAUNDRY REPAIRS,3702489,25885.25
MOJ,NOMS,10/6/2010,Contracted-out operation of prisons and detention centres,Wales/Cymru DOMS Office,BRIDGEND CUSTODIAL SERVICES LTD,3708369,-180000
MOJ,NOMS,10/7/2010,Contracted-out operation of prisons and detention centres,Dovegate,MORETON PRISON SERVICES LTD,3722530,2336527.63
MOJ,NOMS,10/7/2010,Contracted-out Computer Services,NOMIS Programme,HP ENTERPRISE SERVICES UK LTD,3705898,1327333.02
MOJ,NOMS,10/7/2010,WIP - Acquisitions,Estates Capacity,KIER REGIONAL LTD,3719212,1046651.23
MOJ,NOMS,10/7/2010,Consultancy,Director of HRs Office & Strategic Planning,PARITY RESOURCES LTD,3710515,303195.35
MOJ,NOMS,10/7/2010,Consultancy,Estates Capacity,DELOITTE MCS LTD,3725822,264190.69
MOJ,NOMS,10/7/2010,Counselling & Advisory Costs,ROM - Yorkshire & Humberside,LIFELINE PROJECT,3724773,160300.91
MOJ,NOMS,10/7/2010,WIP - Acquisitions,MoJ ICT,HP ENTERPRISE SERVICES UK LTD,3728963,129446.02
MOJ,NOMS,10/7/2010,Contract IT Maintenance,MoJ ICT,HP ENTERPRISE SERVICES UK LTD,3725419,121306.66
MOJ,NOMS,10/7/2010,Legal Representation,Chief Operating Officers Office,HER MAJESTY'S COURTS SERVICE,3724490,112925.95
MOJ,NOMS,10/7/2010,Subsistence,Phoenix HR,CALDER CONFERENCE,3727158,105840.33
MOJ,NOMS,10/7/2010,Contracted-out Probation Boards,Wakefield,WEST YORKSHIRE PROBATION TRUST,3726903,79808.64
MOJ,NOMS,10/7/2010,Subsistence,Phoenix HR,CALDER CONFERENCE,3727154,59067.97
MOJ,NOMS,10/7/2010,General Maintenance Materials,Wales Prisons Estate Management Group (WPEMG),HIGHLAND ELECTRIX (BRIDGEND) LTD,3721316,49721.31
MOJ,NOMS,10/7/2010,Contracted-out operation of prisons and detention centres,Dovegate,MORETON PRISON SERVICES LTD,3722680,43611.08
MOJ,NOMS,10/7/2010,WIP - Professional Fees,Estates Capacity,RIDER LEVETT BUCKNALL UK LTD,3725331,33871.29
MOJ,NOMS,10/7/2010,Other - Acquisitions,Wealstun,SEV GROUP LTD,3724431,33488.68
MOJ,NOMS,10/7/2010,Contracted-out Probation Trusts,Channings Wood,DEVON AND CORNWALL PROBATION TRUST,3724608,33096.51
MOJ,NOMS,10/7/2010,WIP - Acquisitions,Estates Capacity,SIDDALL & HILTON PRODUCTS LTD,3725068,32900
MOJ,NOMS,10/7/2010,Contracted-out Probation Boards,Woodhill,THAMES VALLEY PROBATION TRUST,3725467,31050.56
MOJ,NOMS,10/7/2010,Contract IT Maintenance,NOMS ICT,HP ENTERPRISE SERVICES UK LTD,3677990,29388.44
MOJ,NOMS,10/7/2010,Professional Advice,Estates Capacity,WYG GROUP,3722773,28699.52
MOJ,NOMS,10/7/2010,WIP - Acquisitions,Estates Capacity,BIRMINGHAM BARBED TAPE LTD,3724499,26320
MOJ,NOMS,10/8/2010,Funding payments to Probation Boards,West Midlands DOMS Office,STAFFORDSHIRE AND WEST MIDLANDS PROBATION TRUST,3719151,7650000
MOJ,NOMS,10/8/2010,Contracted-out Probation Trusts,Wales Probation Trust,WALES PROBATION TRUST,3726739,4758072
MOJ,NOMS,10/8/2010,WIP - Acquisitions,Estates Capacity,BRIDGEND CUSTODIAL SERVICES LTD,3725335,4203667.08
MOJ,NOMS,10/8/2010,Contracted-out Probation Trusts,West Yorkshire Probation Trust,WEST YORKSHIRE PROBATION TRUST,3723459,3535080
MOJ,NOMS,10/8/2010,Contracted-out operation of prisons and detention centres,Altcourse,FAZAKERLEY PRISON SERVICES LTD,3725932,3184506
MOJ,NOMS,10/8/2010,Contracted-out operation of prisons and detention centres,Parc,BRIDGEND CUSTODIAL SERVICES LTD,3724974,3048240
MOJ,NOMS,10/8/2010,Contracted-out Probation Trusts,South East DOMS Office,THAMES VALLEY PROBATION TRUST,3726899,2151033.42
MOJ,NOMS,10/8/2010,Contracted-out operation of prisons and detention centres,Ashfield,PUCKLECHURCH CUSTODIAL SERVICES LTD,3722529,2012760
MOJ,NOMS,10/8/2010,Contract IT Maintenance,NOMS ICT,HP ENTERPRISE SERVICES UK LTD,3711088,1723855.72
MOJ,NOMS,10/8/2010,Contracted-out Probation Trusts,Avon and Somerset Probation Trust,AVON AND SOMERSET PROBATION TRUST,3726702,1680708
MOJ,NOMS,10/8/2010,Contracted-out Probation Trusts,Essex Probation Trust,ESSEX PROBATION TRUST,3726101,1586710.43
MOJ,NOMS,10/8/2010,Contracted-out Probation Trusts,Nottinghamshire Probation Trust,NOTTINGHAMSHIRE PROBATION TRUST,3725109,1535000
MOJ,NOMS,10/8/2010,Contracted-out Probation Trusts,South East DOMS Office,KENT PROBATION TRUST,3728754,1500000
MOJ,NOMS,10/8/2010,Contracted-out Probation Trusts,Cheshire Probation Trust,CHESHIRE PROBATION TRUST,3725420,1260000
MOJ,NOMS,10/8/2010,Contracted-out Probation Trusts,York and North Yorkshire Probation Trust,YORK AND NORTH YORKSHIRE PROBATION TRUST,3723460,826501
MOJ,NOMS,10/8/2010,Contracted-out operation of prisons and detention centres,Altcourse,FAZAKERLEY PRISON SERVICES LTD,3725931,639488.1
MOJ,NOMS,10/8/2010,Contracted-out Probation Trusts,Wiltshire Probation Trust,WILTSHIRE PROBATION TRUST,3725421,637992
MOJ,NOMS,10/8/2010,Contracted-out operation of prisons and detention centres,Dovegate,MORETON PRISON SERVICES LTD,3722545,565094
MOJ,NOMS,10/8/2010,Funding payments to Probation Boards,West Midlands DOMS Office,WARWICKSHIRE PROBATION TRUST,3727905,300000
MOJ,NOMS,10/8/2010,Contracted-out Medical services,Whitemoor,CAMBRIDGESHIRE & PETERBOROUGH MENTAL HEALTH PARTNERSHIP,3709057,134170.26
MOJ,NOMS,10/8/2010,Contracted-out Medical services,Whitemoor,CAMBRIDGESHIRE & PETERBOROUGH MENTAL HEALTH PARTNERSHIP,3709058,132156.69
MOJ,NOMS,10/8/2010,Contracted-out Probation Trusts,South East DOMS Office,KENT PROBATION TRUST,3728756,103602
MOJ,NOMS,10/8/2010,Contracted-out Probation Trusts,Sudbury,DERBYSHIRE PROBATION TRUST,3639123,62837.33
MOJ,NOMS,10/8/2010,Specialist Contractors,Estates Capacity,LAMBERT SMITH HAMPTON GROUP LTD,3604312,51511.17
MOJ,NOMS,10/8/2010,Professional Advice,Estates Capacity,BURGESS SALMON,3729285,39963.69
MOJ,NOMS,10/8/2010,Resource Grants / Grant-in-Aid,Wales/Cymru DOMS Office,SAFER WALES LTD,3726881,37500
MOJ,NOMS,10/8/2010,Resource Grants / Grant-in-Aid,Wales/Cymru DOMS Office,SAFER WALES LTD,3726882,37500
MOJ,NOMS,10/8/2010,WIP - Professional Fees,Estates Capacity,JACOBS ENGINEERING UK,3698193,32946.97
MOJ,NOMS,10/8/2010,WIP - Acquisitions,Estates Capacity,HP ENTERPRISE SERVICES UK LTD,3729213,31333.33
MOJ,NOMS,10/8/2010,Contracted-out operation of prisons and detention centres,Bronzefield,ASHFORD PRISON SERVICES LIMITED,3727461,28696.64
MOJ,NOMS,10/8/2010,Pin Phone Suspense,Sheppey Clustered Services,BT PAYPHONES,3729273,27869.54
MOJ,NOMS,10/8/2010,Resource Grants / Grant-in-Aid,ROM - Yorkshire & Humberside,TOGETHER WOMEN PROJECTS (YORKSHIRE AND HUMBERSIDE),3728619,27500
MOJ,NOMS,10/8/2010,Contracted-out Catering Services,Woodhill,ARAMARK LTD,3729089,25650.35
MOJ,NOMS,10/8/2010,Contracted-out Visitor's Centres,Acklington,NEPACS,3727610,25169
MOJ,NOMS,10/8/2010,Professional Advice,Estates Capacity,BURGESS SALMON,,-46312.69
MOJ,NOMS,10/11/2010,Contracted-out Probation Boards,London DOMS Office,LONDON PROBATION TRUST,3730063,12000000
MOJ,NOMS,10/11/2010,Contracted-out operation of prisons and detention centres,Bronzefield,ASHFORD PRISON SERVICES LIMITED,3727475,2180611.64
MOJ,NOMS,10/11/2010,Contracted-out Probation Trusts,Norfolk & Suffolk Probation Trust,NORFOLK AND SUFFOLK PROBATION TRUST,3729912,1679458.71
MOJ,NOMS,10/11/2010,Contracted-out Probation Trusts,Devon and Cornwall Probation Trust,DEVON AND CORNWALL PROBATION TRUST,3724501,1645250
MOJ,NOMS,10/11/2010,Contracted-out Probation Trusts,Humberside Probation Trust,HUMBERSIDE PROBATION TRUST,3725070,1526821.17
MOJ,NOMS,10/11/2010,Contracted-out operation of prisons and detention centres,Peterborough,PETERBOROUGH PRISON MANAGEMENT LTD,3727469,1149988.5
MOJ,NOMS,10/11/2010,Contracted-out Probation Trusts,Hertfordshire Probation Trust,HERTFORDSHIRE PROBATION TRUST,3726145,999842.71
MOJ,NOMS,10/11/2010,Payments to voluntary Organisations,Business and Service Development Group,NACRO LTD,3730513,500754.75
MOJ,NOMS,10/11/2010,WIP - Acquisitions,Estates Capacity,CARILLION JM LIMITED,3730705,158188.08
MOJ,NOMS,10/11/2010,WIP - Acquisitions,Estates Capacity,HENRY BOOT CONSTRUCTION (U K) LTD,3730615,150595.05
MOJ,NOMS,10/11/2010,Contracted-out Probation Trusts,South East DOMS Office,HAMPSHIRE PROBATION TRUST,3715912,125000
MOJ,NOMS,10/11/2010,Occupational Health Services,Phoenix MSO,ATOS ORIGIN IT SERVICES UK LTD,3705474,119645.05
MOJ,NOMS,10/11/2010,WIP - Acquisitions,Estates Capacity,HENRY BOOT CONSTRUCTION (U K) LTD,3730113,90688.85
MOJ,NOMS,10/11/2010,Contract IT Maintenance,Procurement Group,HP ENTERPRISE SERVICES UK LTD,3706022,75891.38
MOJ,NOMS,10/11/2010,Recruitment,Organisational Development Group,EURO RSCG RILEY,3721206,72000
MOJ,NOMS,10/11/2010,Contracted-out operation of prisons and detention centres,Bronzefield,ASHFORD PRISON SERVICES LIMITED,3727460,49391.36
MOJ,NOMS,10/11/2010,Contracted-out operation of prisons and detention centres,Peterborough,PETERBOROUGH PRISON MANAGEMENT LTD,3727466,48945.6
MOJ,NOMS,10/11/2010,Contracted-out Probation Trusts,Business and Service Development Group,YORK AND NORTH YORKSHIRE PROBATION TRUST,3728741,40395.81
MOJ,NOMS,10/11/2010,Contracted-out operation of prisons and detention centres,Peterborough,PETERBOROUGH PRISON MANAGEMENT LTD,3727451,36950.4
MOJ,NOMS,10/11/2010,Contracted-out operation of prisons and detention centres,Peterborough,PETERBOROUGH PRISON MANAGEMENT LTD,3727470,36305.87
MOJ,NOMS,10/11/2010,Contracted-out operation of prisons and detention centres,Peterborough,PETERBOROUGH PRISON MANAGEMENT LTD,3727452,33916.25
MOJ,NOMS,10/11/2010,Contracted-out Probation Boards,Bure,NORFOLK AND SUFFOLK PROBATION TRUST,3729916,32316.8
MOJ,NOMS,10/11/2010,Pin Phone Suspense,Manchester,BT PAYPHONES,3730778,28992.34
MOJ,NOMS,10/11/2010,WIP - Professional Fees,Estates Capacity,JACOBS ENGINEERING UK,3730378,27146.41
MOJ,NOMS,10/11/2010,Pin Phone Suspense,Pentonville,BT PAYPHONES,3730792,25778.94
MOJ,NOMS,10/11/2010,Insurance,Peterborough,PETERBOROUGH PRISON MANAGEMENT LTD,3614543,-107386.3
MOJ,NOMS,10/11/2010,Insurance,Peterborough,PETERBOROUGH PRISON MANAGEMENT LTD,3661386,-116446.51
MOJ,NOMS,10/11/2010,Insurance,Peterborough,PETERBOROUGH PRISON MANAGEMENT LTD,3698813,-117500.49
MOJ,NOMS,10/12/2010,WIP - Acquisitions,Estates Capacity,KIER REGIONAL LTD,3728375,11440872.53
MOJ,NOMS,10/12/2010,Contracted-out operation of prisons and detention centres,Forest Bank,AGECROFT PRISON MANAGEMENT LTD,3722498,2769329.17
MOJ,NOMS,10/12/2010,Contracted-out Probation Trusts,Northumbria Probation Trust,NORTHUMBRIA PROBATION TRUST,3733367,2376000
MOJ,NOMS,10/12/2010,Contract IT Maintenance,NOMS ICT,HP ENTERPRISE SERVICES UK LTD,3728580,2095516.12
MOJ,NOMS,10/12/2010,WIP - Acquisitions,Estates Capacity,KIER NORTHERN,3728469,1575647.98
MOJ,NOMS,10/12/2010,Contracted-out Escorts,Prisoner Escort & Custody Service (PECS),G4S CARE & JUSTICE SERVICES LTD,3724922,1439309.55
MOJ,NOMS,10/12/2010,Contracted-out operation of prisons and detention centres,Peterborough,PETERBOROUGH PRISON MANAGEMENT LTD,3727473,1306403.96
MOJ,NOMS,10/12/2010,Contracted-out Escorts,Prisoner Escort & Custody Service (PECS),G4S CARE & JUSTICE SERVICES LTD,3724926,912862.85
MOJ,NOMS,10/12/2010,WIP - Acquisitions,Estates Capacity,INTERSERVE PROJECT SERVICES LTD,3728512,231768.75
MOJ,NOMS,10/12/2010,Contracted-out Other Services,East Midlands DOMS Office,TURNING POINT WOMEN'S CENTRE LIMITED,3733445,140000
MOJ,NOMS,10/12/2010,Consultancy,Estates Capacity,PRICEWATERHOUSECOOPERS LLP,3690382,132762.12
MOJ,NOMS,10/12/2010,Professional Advice,Security Group,LONDON PROBATION TRUST,3731665,82554.95
MOJ,NOMS,10/12/2010,Contracted-out Other Services,East Midlands DOMS Office,WOMENS WORK DERBYSHIRE LTD,3733447,80000
MOJ,NOMS,10/12/2010,WIP - Acquisitions,Estates Capacity,INTERSERVE PROJECT SERVICES LTD,3732308,71087.5
MOJ,NOMS,10/12/2010,WIP - Acquisitions,Estates Capacity,VINCI CONSTRUCTION UK LTD,3733184,60855.6
MOJ,NOMS,10/12/2010,WIP - Acquisitions,Estates Capacity,HENRY BOOT CONSTRUCTION (U K) LTD,3697104,56851.61
MOJ,NOMS,10/12/2010,Contract IT Maintenance,NOMS ICT,HP ENTERPRISE SERVICES UK LTD,3725108,54340.07
MOJ,NOMS,10/12/2010,Contract IT Maintenance,MoJ ICT,HP ENTERPRISE SERVICES UK LTD,3723417,49135.45
MOJ,NOMS,10/12/2010,Professional Advice,Askham Grange,BARNARDO'S,3733040,45142.25
MOJ,NOMS,10/12/2010,Secondments,London DOMS Office,STAFFORDSHIRE AND WEST MIDLANDS PROBATION TRUST,3733313,42529.75
MOJ,NOMS,10/12/2010,Miscellaneous,Security Group,LONDON PROBATION TRUST,3731666,38584.3
MOJ,NOMS,10/12/2010,Contract IT Maintenance,MoJ ICT,HP ENTERPRISE SERVICES UK LTD,3723416,37247.49
MOJ,NOMS,10/12/2010,Contracted-out Probation Trusts,Preston,LANCASHIRE PROBATION TRUST,3733056,32730.76
MOJ,NOMS,10/12/2010,Contract IT Maintenance,MoJ ICT,HP ENTERPRISE SERVICES UK LTD,3723224,31181.98
MOJ,NOMS,10/12/2010,Contracted-out Probation Trusts,Norwich,NORFOLK AND SUFFOLK PROBATION TRUST,3729913,25392.15
MOJ,NOMS,10/12/2010,Contracted-out operation of prisons and detention centres,Forest Bank,AGECROFT PRISON MANAGEMENT LTD,3726392,-43881
MOJ,NOMS,10/13/2010,Contract IT Maintenance,MoJ ICT,STERIA LTD,3735651,5397823.71
MOJ,NOMS,10/13/2010,Contracted-out Probation Trusts,Merseyside Probation Trust,MERSEYSIDE PROBATION TRUST,3735507,2500000
MOJ,NOMS,10/13/2010,WIP - Acquisitions,Estates Capacity,KIER REGIONAL LTD,3734039,971033.41
MOJ,NOMS,10/13/2010,WIP - Acquisitions,MoJ ICT,STERIA LTD,3735651,923830.56
MOJ,NOMS,10/13/2010,Contracted-out Probation Trusts,Bedfordshire Probation Trust,BEDFORDSHIRE PROBATION TRUST,3735454,766861.14
MOJ,NOMS,10/13/2010,WIP - Acquisitions,Estates Capacity,WILLMOTT DIXON CONSTRUCTION LTD,3732766,645999.8
MOJ,NOMS,10/13/2010,Funding payments to Probation Boards,West Midlands DOMS Office,WEST MERCIA PROBATION TRUST,3736127,641930
MOJ,NOMS,10/13/2010,Legal Representation,Chief Operating Officers Office,TREASURY SOLICITORS,3736018,607407.39
MOJ,NOMS,10/13/2010,Prison Shop Cost of Sales,Chief Operating Officers Office,EXEL EUROPE1 LTD,3735141,358944.09
MOJ,NOMS,10/13/2010,WIP - Acquisitions,Estates Capacity,KIER REGIONAL LTD,3734040,322673.34
MOJ,NOMS,10/13/2010,Legal Representation,Chief Operating Officers Office,TREASURY SOLICITORS,3736021,305416.23
MOJ,NOMS,10/13/2010,WIP - Acquisitions,Estates Capacity,KIER REGIONAL LTD,3733083,226770.3
MOJ,NOMS,10/13/2010,WIP - Acquisitions,Estates Capacity,INTERSERVE PROJECT SERVICES LTD,3732307,218550
MOJ,NOMS,10/13/2010,WIP - Acquisitions,Estates Capacity,KIER NORTHERN,3733087,201868.02
MOJ,NOMS,10/13/2010,Prison Shop Cost of Sales (No VAT),Chief Operating Officers Office,EXEL EUROPE1 LTD,3735141,183815.02
MOJ,NOMS,10/13/2010,Secondments,Workforce Modernisation Programme,HOME OFFICE - AFU CASH MANAGEMENT,3736144,94918.61
MOJ,NOMS,10/13/2010,Contracted-out Resettlement Services,NOMS CFO,PERTEMPS PEOPLE DEVELOPMENT GROUP,3726273,82917.65
MOJ,NOMS,10/13/2010,WIP - Acquisitions,Estates Capacity,HENRY BOOT CONSTRUCTION (U K) LTD,3735218,80276.61
MOJ,NOMS,10/13/2010,Contracted-out Other Services,Public Protection and Mental Health Group,UNIVERSITY OF NEWCASTLE-UPON-TYNE,3733604,67831.58
MOJ,NOMS,10/13/2010,Travel - Non-Taxable,Phoenix HR,CARLSON WAGONLIT TRAVEL,3733410,65553.99
MOJ,NOMS,10/13/2010,Electricity,Wymott,EDF ENERGY,3735991,62386.01
MOJ,NOMS,10/13/2010,Electricity,Lindholme,EDF ENERGY,3735989,52623.27
MOJ,NOMS,10/13/2010,WIP - Acquisitions,Estates Capacity,MAYBOURNE & RUSSELL LTD,3734426,45882.58
MOJ,NOMS,10/13/2010,Electricity,Frankland,EDF ENERGY,3736047,38224.87
MOJ,NOMS,10/13/2010,Electricity,Belmarsh,EDF ENERGY,3736170,37330.78
MOJ,NOMS,10/13/2010,Electricity,Manchester,EDF ENERGY,3735729,35987.49
MOJ,NOMS,10/13/2010,Contracted-out Probation Boards,Isis,LONDON PROBATION TRUST,3735136,35985.61
MOJ,NOMS,10/13/2010,Electricity,Wandsworth,EDF ENERGY,3735736,35340.07
MOJ,NOMS,10/13/2010,Electricity,Acklington,EDF ENERGY,3736045,34549.34
MOJ,NOMS,10/13/2010,Electricity,Highdown,EDF ENERGY,3736167,34354.46
MOJ,NOMS,10/13/2010,Contracted-out Probation Boards,Pentonville,LONDON PROBATION TRUST,3734071,32439.5
MOJ,NOMS,10/13/2010,Electricity,Isis,EDF ENERGY,3734209,32086.65
MOJ,NOMS,10/13/2010,Electricity,Birmingham,EDF ENERGY,3735874,32084.93
MOJ,NOMS,10/13/2010,Electricity,Sheppey Clustered Services,EDF ENERGY,3735830,31967.94
MOJ,NOMS,10/13/2010,Electricity,Ranby,EDF ENERGY,3735706,29953.88
MOJ,NOMS,10/13/2010,Electricity,Full Sutton,EDF ENERGY,3735852,28092.75
MOJ,NOMS,10/13/2010,Electricity,Sheppey Clustered Services,EDF ENERGY,3735788,27814.6
MOJ,NOMS,10/13/2010,Electricity,Bullingdon,EDF ENERGY,3735866,27666.84
MOJ,NOMS,10/13/2010,Electricity,Liverpool,EDF ENERGY,3735985,27364.46
MOJ,NOMS,10/13/2010,Electricity,Wormwood Scrubs,EDF ENERGY,3736175,26420.7
MOJ,NOMS,10/13/2010,Electricity,Risley,EDF ENERGY,3735817,26282.31
MOJ,NOMS,10/13/2010,Electricity,Hewell,EDF ENERGY,3735777,26037.02
MOJ,NOMS,10/13/2010,Electricity,Highpoint,EDF ENERGY,3736203,25683.68
MOJ,NOMS,10/13/2010,Electricity,Leeds,EDF ENERGY,3735741,25661.85
MOJ,NOMS,10/13/2010,Electricity,Holme House,EDF ENERGY,3733856,25542.11
MOJ,NOMS,10/13/2010,Electricity,Wakefield,EDF ENERGY,3735987,25371.81
MOJ,NOMS,10/14/2010,Contracted-out Probation Trusts,South East DOMS Office,HAMPSHIRE PROBATION TRUST,3734187,2094000
MOJ,NOMS,10/14/2010,Contracted-out operation of prisons and detention centres,Lowdham Grange,LOWDHAM GRANGE PRISON SERVICES LTD,3722532,1978371.83
MOJ,NOMS,10/14/2010,Specialist Contractors,Director of HRs Office & Strategic Planning,PARITY RESOURCES LTD,3734213,305648.09
MOJ,NOMS,10/14/2010,WIP - Acquisitions,Estates Capacity,INTERSERVE PROJECT SERVICES LTD,3734291,290272
MOJ,NOMS,10/14/2010,WIP - Acquisitions,Estates Capacity,INTERSERVE PROJECT SERVICES LTD,3679387,267733.15
MOJ,NOMS,10/14/2010,WIP - Acquisitions,Estates Capacity,WATES CONSTRUCTION LTD,3736574,164500
MOJ,NOMS,10/14/2010,WIP - Acquisitions,Estates Capacity,KIER REGIONAL LTD,3737070,148417.78
MOJ,NOMS,10/14/2010,Subsistence,Phoenix HR,CALDER CONFERENCE,3737319,93326.26
MOJ,NOMS,10/14/2010,WIP - Acquisitions,Estates Capacity,WILLMOTT DIXON CONSTRUCTION LTD,3736642,60445.97
MOJ,NOMS,10/14/2010,Specialist Contractors,Procurement Group,CAPGEMINI UK PLC,3660202,57692.5
MOJ,NOMS,10/14/2010,Specialist Contractors,Procurement Group,CAPGEMINI UK PLC,3654671,49144.38
MOJ,NOMS,10/14/2010,Contracted-out Probation Boards,Wandsworth,LONDON PROBATION TRUST,3734070,48271.86
MOJ,NOMS,10/14/2010,WIP - Professional Fees,Estates Capacity,HENRY RILEY,3720483,47140.54
MOJ,NOMS,10/14/2010,Contracted-out Probation Trusts,Durham,DURHAM TEES VALLEY PROBATION TRUST,3735420,45637.76
MOJ,NOMS,10/14/2010,Contracted-out operation of prisons and detention centres,Lowdham Grange,LOWDHAM GRANGE PRISON SERVICES LTD,3722531,42892.8
MOJ,NOMS,10/14/2010,Specialist Contractors,Procurement Group,SIMMONS & SIMMONS,3718557,35251
MOJ,NOMS,10/14/2010,Uniforms & protective Clothing,Manchester,JIANGSU SUNSHINE IMPORT & EXPORT CO LTD,3727216,31763.84
MOJ,NOMS,10/14/2010,Contracted-out Resettlement Services,NOMS CFO,LONDON PROBATION TRUST,3737463,31549.28
MOJ,NOMS,10/14/2010,Specialist Contractors,Estates Capacity,DRIVERS JONAS,3706068,27292.01
MOJ,NOMS,10/14/2010,WIP - Professional Fees,Estates Capacity,TURNER & TOWNSEND,3672699,26715.95
MOJ,NOMS,10/14/2010,Uniforms & protective Clothing,Long Lartin,JIANGSU SUNSHINE IMPORT & EXPORT CO LTD,3727212,26662.59
MOJ,NOMS,10/14/2010,Contracted-out Probation Trusts,Holloway,LONDON PROBATION TRUST,3735137,26294.45
MOJ,NOMS,10/15/2010,Contracted-out Probation Trusts,Durham Tees Valley Probation Trust,DURHAM TEES VALLEY PROBATION TRUST,3738826,1921010
MOJ,NOMS,10/15/2010,Contracted-out Escorts,Prisoner Escort & Custody Service (PECS),G4S CARE & JUSTICE SERVICES LTD,3724921,1038035.25
MOJ,NOMS,10/15/2010,Contracted-out Escorts,Prisoner Escort & Custody Service (PECS),G4S CARE & JUSTICE SERVICES LTD,3724925,951724
MOJ,NOMS,10/15/2010,Contracted-out operation of prisons and detention centres,Wolds,G4S CARE & JUSTICE SERVICES LTD,3737561,747369.88
MOJ,NOMS,10/15/2010,WIP - Acquisitions,Estates Capacity,SHAYLOR CONSTRUCTION LTD,3738073,523637.58
MOJ,NOMS,10/15/2010,"Prisoner Compensation over 5,000",Brixton,TREASURY SOLICITORS,3738938,142000
MOJ,NOMS,10/15/2010,WIP - Acquisitions,Estates Capacity,CRISPIN & BORST LTD,3738646,89651.33
MOJ,NOMS,10/15/2010,WIP - Acquisitions,Estates Capacity,CARILLION JM LIMITED,3738098,88408.18
MOJ,NOMS,10/15/2010,WIP - Acquisitions,Estates Capacity,ISG REGIONS LTD,3738100,82805.78
MOJ,NOMS,10/15/2010,Contract IT Maintenance,MoJ ICT,HP ENTERPRISE SERVICES UK LTD,3737229,72707.67
MOJ,NOMS,10/15/2010,WIP - Acquisitions,NOMS ICT,HP ENTERPRISE SERVICES UK LTD,3738264,66732.25
MOJ,NOMS,10/15/2010,Training and Further Education Courses,Learning and Development Group,DE MONTFORT UNIVERSITY HIGHER EDUCATION CORPORATION,3730253,59429.81
MOJ,NOMS,10/15/2010,Raw Materials - ESS/LBA Industries,Offender Employment Skills & Services Group,CHARLES FELLOWS SUPPLIES LTD,3702435,52875
MOJ,NOMS,10/15/2010,Contracted-out Other Services,IW Cluster,COFATHEC ENERGY SERVICES UK LTD,3738972,47750.65
MOJ,NOMS,10/15/2010,Secondments,Yorkshire and Humberside DOMS Office,WEST YORKSHIRE PROBATION TRUST,3739063,43218.02
MOJ,NOMS,10/15/2010,Contracted-out Other Services,Deerbolt,COFATHEC ENERGY SERVICES UK LTD,3738970,38474.62
MOJ,NOMS,10/15/2010,"New structural works, structural maintenance and equipment",East Midlands Estates,J S ENVIRONMENTAL LTD,3714855,36689.38
MOJ,NOMS,10/15/2010,Miscellaneous,West Midlands DOMS Office,STAFFORDSHIRE AND WEST MIDLANDS PROBATION TRUST,3739634,35767
MOJ,NOMS,10/15/2010,Contracted-out Library,Hewell,WORCESTERSHIRE COUNTY COUNCIL,3730181,33091
MOJ,NOMS,10/15/2010,Contract IT Maintenance,MoJ ICT,HP ENTERPRISE SERVICES UK LTD,3706020,31415.67
MOJ,NOMS,10/15/2010,WIP - Professional Fees,Estates Capacity,AEDAS ARCHITECTS LTD,3671439,30811.31
MOJ,NOMS,10/15/2010,Consultancy,Organisational Development Group,P A CONSULTING SERVICES LTD,3721395,30061.96
MOJ,NOMS,10/15/2010,Contracted-out Probation Boards,New Hall,CITY OF WAKEFIELD,3738920,28842.11
MOJ,NOMS,10/15/2010,Gas,Lewes,COFATHEC ENERGY SERVICES UK LTD,3738971,28433.06
MOJ,NOMS,10/15/2010,Electricity,Woodhill,EDF ENERGY,3738967,28357.89
MOJ,NOMS,10/15/2010,Water and Sewage,Sheppey Clustered Services,SOUTHERN WATER SERVICES LTD,3631047,26383.43
MOJ,NOMS,10/15/2010,Secondments,Probation Trust Unit,LONDON PROBATION TRUST,3734799,26218.46
MOJ,NOMS,10/15/2010,Specialist Contractors,Procurement Group,HUDSON GLOBAL RESOURCES LTD,3681943,25596.2
MOJ,NOMS,10/18/2010,Contracted-out Escorts,Prisoner Escort & Custody Service (PECS),SERCO LTD,3724930,1469770.9
MOJ,NOMS,10/18/2010,Contracted-out Escorts,Prisoner Escort & Custody Service (PECS),SERCO LTD,3724377,1042242.83
MOJ,NOMS,10/18/2010,Contracted-out Resettlement Services,NOMS CFO,LONDON PROBATION TRUST,3740777,986984.67
MOJ,NOMS,10/18/2010,Contracted-out Probation Trusts,Cumbria Probation Trust,CUMBRIA PROBATION TRUST,3741140,770000
MOJ,NOMS,10/18/2010,Contracted-out Probation Trusts,Gloucestershire Probation Trust,GLOUCESTERSHIRE PROBATION TRUST,3740554,621262.49
MOJ,NOMS,10/18/2010,Contracted-out Other Services,ROM - West Midlands,ANAWIM WWT,3740837,164078
MOJ,NOMS,10/18/2010,WIP - Acquisitions,Estates Capacity,KIER REGIONAL LTD,3734431,137475
MOJ,NOMS,10/18/2010,Contracted-out Other Services,ROM - West Midlands,ANAWIM WWT,3740838,117500
MOJ,NOMS,10/18/2010,Contracted-out Resettlement Services,NOMS CFO,MERSEYSIDE PROBATION TRUST,3740548,117121.27
MOJ,NOMS,10/18/2010,Specialist Contractors,Director of HRs Office & Strategic Planning,PARITY RESOURCES LTD,3740655,89788.37
MOJ,NOMS,10/18/2010,Contracted-out Resettlement Services,NOMS CFO,MERSEYSIDE PROBATION TRUST,3740297,72857.28
MOJ,NOMS,10/18/2010,Contracted-out Resettlement Services,NOMS CFO,MERSEYSIDE PROBATION TRUST,3740545,71145.6
MOJ,NOMS,10/18/2010,Specialist Contractors,Performance Information and Analysis Group,PRICEWATERHOUSECOOPERS LLP,3741925,62258.66
MOJ,NOMS,10/18/2010,Payments to voluntary Organisations,East of England Regional NOMS Office,NACRO NCT (EAST ANGLIA),3741737,47479
MOJ,NOMS,10/18/2010,Payments to voluntary Organisations,East of England Regional NOMS Office,NACRO NCT (EAST ANGLIA),3741735,46927.52
MOJ,NOMS,10/18/2010,Inter-Unit Charge (IUC),Hewell,SHAYLOR CONSTRUCTION LTD,3594542,43016.23
MOJ,NOMS,10/18/2010,Contracted-out Resettlement Services,NOMS CFO,MERSEYSIDE PROBATION TRUST,3740544,42844.25
MOJ,NOMS,10/18/2010,Counselling & Advisory Costs,Highdown,R A P T,3740859,37735
MOJ,NOMS,10/18/2010,Contract IT Maintenance,NOMS ICT,HP ENTERPRISE SERVICES UK LTD,3696874,37411.77
MOJ,NOMS,10/18/2010,Counselling & Advisory Costs,Bullingdon,R A P T,3740843,37231
MOJ,NOMS,10/18/2010,Contracted-out Resettlement Services,NOMS CFO,MERSEYSIDE PROBATION TRUST,3740542,36366
MOJ,NOMS,10/18/2010,"New structural works, structural maintenance and equipment",Hull,SANGWIN LIMITED,3698960,34536.93
MOJ,NOMS,10/18/2010,WIP - Professional Fees,Estates Capacity,JACOBS ENGINEERING UK,3716456,30439.1
MOJ,NOMS,10/18/2010,"Prisoner Compensation over 5,000",Onley,TREASURY SOLICITORS,3738691,30000
MOJ,NOMS,10/18/2010,Counselling & Advisory Costs,Sheppey Clustered Services,R A P T,3740856,29783
MOJ,NOMS,10/18/2010,Counselling & Advisory Costs,Everthorpe,R A P T,3740857,27250
MOJ,NOMS,10/18/2010,Contracted-out Escorts,Prisoner Escort & Custody Service (PECS),SERCO LTD,3716468,-27070.68
MOJ,NOMS,10/19/2010,Contracted-out Escorts,Prisoner Escort & Custody Service (PECS),SERCO LTD,3724378,1663935.17
MOJ,NOMS,10/19/2010,Contracted-out operation of prisons and detention centres,Rye Hill,ONLEY PRISON SERVICES LTD,3727846,1415560.68
MOJ,NOMS,10/19/2010,Contracted-out Probation Trusts,Lincolnshire Probation Trust,LINCOLNSHIRE PROBATION TRUST,3739907,785167
MOJ,NOMS,10/19/2010,WIP - Acquisitions,Estates Capacity,WATES CONSTRUCTION LTD,3716952,311004.88
MOJ,NOMS,10/19/2010,WIP - Acquisitions,Estates Capacity,INTERSERVE PROJECT SERVICES LTD,3741273,239797.8
MOJ,NOMS,10/19/2010,WIP - Acquisitions,Estates Capacity,INTERSERVE PROJECT SERVICES LTD,3735432,219725
MOJ,NOMS,10/19/2010,WIP - Acquisitions,Estates Capacity,KIER REGIONAL LTD,3688304,219640.4
MOJ,NOMS,10/19/2010,WIP - Acquisitions,Estates Capacity,INTERSERVE PROJECT SERVICES LTD,3737566,141727.32
MOJ,NOMS,10/19/2010,Professional Advice,High Security Prisons Group,TREASURY SOLICITORS,3742071,130093.78
MOJ,NOMS,10/19/2010,Contract IT Maintenance,MoJ ICT,HP ENTERPRISE SERVICES UK LTD,3723226,83033.32
MOJ,NOMS,10/19/2010,Specialist Contractors,Offender Assessment & Management Group,HP ENTERPRISE SERVICES UK LTD,3706021,74908.6
MOJ,NOMS,10/19/2010,Travel - Non-Taxable,Phoenix HR,CARLSON WAGONLIT TRAVEL,3742130,62136.93
MOJ,NOMS,10/19/2010,Gas,Kirkham,COFATHEC ENERGY PFI LTD,3742153,59452.36
MOJ,NOMS,10/19/2010,Counselling & Advisory Costs,Pentonville,R A P T,3742099,59352.86
MOJ,NOMS,10/19/2010,Contracted-out Resettlement Services,NOMS CFO,MERSEYSIDE PROBATION TRUST,3740543,58461
MOJ,NOMS,10/19/2010,Contracted-out Other Services,Dartmoor,COFATHEC ENERGY SERVICES UK LTD,3742066,54080.64
MOJ,NOMS,10/19/2010,Secondments,Public Protection and Mental Health Group,WEST YORKSHIRE PROBATION TRUST,3742031,53634.34
MOJ,NOMS,10/19/2010,Miscellaneous,IW Cluster,MCM CONSTRUCTION LTD,3730416,53402
MOJ,NOMS,10/19/2010,Counselling & Advisory Costs,Wandsworth,R A P T,3742124,52356.6
MOJ,NOMS,10/19/2010,Specialist Contractors,Estates Capacity,LAMBERT SMITH HAMPTON GROUP LTD,3739512,49468.49
MOJ,NOMS,10/19/2010,Professional Advice,High Security Prisons Group,TREASURY SOLICITORS,3742070,42549.95
MOJ,NOMS,10/19/2010,Contracted-out Other Services,New Hall,COFATHEC ENERGY PFI LTD,3742165,39343.99
MOJ,NOMS,10/19/2010,Contracted-out Other Services,IW Cluster,COFATHEC ENERGY SERVICES UK LTD,3742065,38795.36
MOJ,NOMS,10/19/2010,Contracted-out Other Services,Blundeston,COFATHEC ENERGY SERVICES UK LTD,3742063,38236.58
MOJ,NOMS,10/19/2010,Counselling & Advisory Costs,Holloway,R A P T,3742080,37998.5
MOJ,NOMS,10/19/2010,Contracted-out Catering Services,Holme House,ESS SUPPORT SERVICES WORLDWIDE,3733449,37103.56
MOJ,NOMS,10/19/2010,Counselling & Advisory Costs,Eastwood Park,AVON & WILTSHIRE MENTAL HEALTH PARTNERSHIP N H S TRUST,3739757,36362
MOJ,NOMS,10/19/2010,Counselling & Advisory Costs,Styal,LIFELINE PROJECT,3739305,35823.44
MOJ,NOMS,10/19/2010,Counselling & Advisory Costs,Styal,LIFELINE PROJECT,3739264,34801.54
MOJ,NOMS,10/19/2010,Other Fuels,Chelmsford,COFATHEC ENERGY SERVICES UK LTD,3742067,34484.09
MOJ,NOMS,10/19/2010,Contracted-out operation of prisons and detention centres,Rye Hill,ONLEY PRISON SERVICES LTD,3728313,33943.06
MOJ,NOMS,10/19/2010,Water and Sewage,Sheppey Clustered Services,SOUTHERN WATER SERVICES LTD,3740802,33590.29
MOJ,NOMS,10/19/2010,Counselling & Advisory Costs,Wormwood Scrubs,R A P T,3742128,33071
MOJ,NOMS,10/19/2010,Contracted-out operation of prisons and detention centres,Rye Hill,ONLEY PRISON SERVICES LTD,3728315,33070.72
MOJ,NOMS,10/19/2010,Works,Shepton Mallet,IAN WILLIAMS LTD,3689119,31778.19
MOJ,NOMS,10/19/2010,Counselling & Advisory Costs,Bristol,AVON & WILTSHIRE MENTAL HEALTH PARTNERSHIP N H S TRUST,3739785,30265
MOJ,NOMS,10/19/2010,General Maintenance Materials,Bristol,BSS WIGAN,3741739,27691.23
MOJ,NOMS,10/19/2010,Gas,Low Newton,CORONA ENERGY RETAIL 4 LTD,3742178,25308.49
MOJ,NOMS,10/20/2010,Contracted-out operation of prisons and detention centres,Doncaster,SERCO LTD,3728694,1890400.06
MOJ,NOMS,10/20/2010,Contracted-out Probation Trusts,Derbyshire Probation Trust,DERBYSHIRE PROBATION TRUST,3744121,1176250
MOJ,NOMS,10/20/2010,WIP - Acquisitions,Estates Capacity,KIER REGIONAL LTD,3741770,705000
MOJ,NOMS,10/20/2010,WIP - Acquisitions,Estates Capacity,CALEDONIAN BUILDING SYSTEMS,3741745,320877.23
MOJ,NOMS,10/20/2010,WIP - Acquisitions,Estates Capacity,WATES CONSTRUCTION LTD,3726920,299864.94
MOJ,NOMS,10/20/2010,WIP - Acquisitions,Estates Capacity,INTERSERVE PROJECT SERVICES LTD,3741272,269709.38
MOJ,NOMS,10/20/2010,WIP - Acquisitions,Estates Capacity,HENRY BOOT CONSTRUCTION (U K) LTD,3728638,230584.84
MOJ,NOMS,10/20/2010,WIP - Acquisitions,Estates Capacity,INTERSERVE PROJECT SERVICES LTD,3743836,220199.7
MOJ,NOMS,10/20/2010,WIP - Acquisitions,Estates Capacity,WATES CONSTRUCTION LTD,3744599,144039.73
MOJ,NOMS,10/20/2010,Occupational Health Services,Phoenix MSO,ATOS ORIGIN IT SERVICES UK LTD,3741014,130581
MOJ,NOMS,10/20/2010,WIP - Acquisitions,Estates Capacity,WATES CONSTRUCTION LTD,3743982,125342.53
MOJ,NOMS,10/20/2010,WIP - Acquisitions,Estates Capacity,CARILLION JM LIMITED,3738099,94388.93
MOJ,NOMS,10/20/2010,Contracted-out Resettlement Services,NOMS CFO,LEICESTERSHIRE&RUTLAND PROBATION TRUST,3742862,87697.2
MOJ,NOMS,10/20/2010,Specialist Contractors,Procurement Group,CAPGEMINI UK PLC,3744151,57692.5
MOJ,NOMS,10/20/2010,Counselling & Advisory Costs,Brixton,R A P T,3659536,54937
MOJ,NOMS,10/20/2010,Counselling & Advisory Costs,Brixton,R A P T,3687359,54937
MOJ,NOMS,10/20/2010,Counselling & Advisory Costs,Brixton,R A P T,3630660,54543
MOJ,NOMS,10/20/2010,Counselling & Advisory Costs,Brixton,R A P T,3630659,54543
MOJ,NOMS,10/20/2010,Counselling & Advisory Costs,Brixton,R A P T,3630661,54543
MOJ,NOMS,10/20/2010,Contract IT Maintenance,MoJ ICT,HP ENTERPRISE SERVICES UK LTD,3744465,53768.43
MOJ,NOMS,10/20/2010,Resource Grants / Grant-in-Aid,ROM - Yorkshire & Humberside,CAMBRIDGE CENTRE (SADAC) LTD,3743349,50000
MOJ,NOMS,10/20/2010,Specialist Contractors,Procurement Group,CAPGEMINI UK PLC,3744125,49144.38
MOJ,NOMS,10/20/2010,Specialist Contractors,Procurement Group,CAPGEMINI UK PLC,3654672,46060
MOJ,NOMS,10/20/2010,Specialist Contractors,Procurement Group,CAPGEMINI UK PLC,3744149,46060
MOJ,NOMS,10/20/2010,Specialist Contractors,Procurement Group,CAPGEMINI UK PLC,3735531,43944.41
MOJ,NOMS,10/20/2010,Specialist Contractors,Procurement Group,CAPGEMINI UK PLC,3581988,43005
MOJ,NOMS,10/20/2010,Clothing,Offender Employment Skills & Services Group,JIANGSU SAINTY CORP LTD,3722385,42421.2
MOJ,NOMS,10/20/2010,Contracted-out Probation Trusts,Bullwood Hall,ESSEX PROBATION TRUST,3744567,40330.93
MOJ,NOMS,10/20/2010,Materials for use in Staff Training and Further Education Courses,Rehabilitation Services Group,STAFFORDSHIRE AND WEST MIDLANDS PROBATION TRUST,3744502,34986
MOJ,NOMS,10/20/2010,Contracted-out operation of prisons and detention centres,Forest Bank,AGECROFT PRISON MANAGEMENT LTD,3722495,33705.09
MOJ,NOMS,10/20/2010,Occupational Health Services,HR Policy & Reward Group,ATOS ORIGIN IT SERVICES UK LTD,3690579,33644
MOJ,NOMS,10/20/2010,Contracted-out Probation Trusts,Glen Parva,LEICESTERSHIRE&RUTLAND PROBATION TRUST,3743988,32802.05
MOJ,NOMS,10/20/2010,Gas,Pentonville,COFATHEC ENERGY PFI LTD,3745152,31426.82
MOJ,NOMS,10/20/2010,Contracted-out Probation Boards,Belmarsh,LONDON PROBATION TRUST,3735140,28151.51
MOJ,NOMS,10/20/2010,Specialist Contractors,Procurement Group,CAPGEMINI UK PLC,3744127,-43005
MOJ,NOMS,10/20/2010,Specialist Contractors,Procurement Group,CAPGEMINI UK PLC,3744148,-43944.41
MOJ,NOMS,10/20/2010,Specialist Contractors,Procurement Group,CAPGEMINI UK PLC,3744150,-46060
MOJ,NOMS,10/20/2010,Specialist Contractors,Procurement Group,CAPGEMINI UK PLC,3744126,-49144.38
MOJ,NOMS,10/20/2010,Specialist Contractors,Procurement Group,CAPGEMINI UK PLC,3744152,-57692.5
MOJ,NOMS,10/21/2010,WIP - Acquisitions,Estates Capacity,WATES CONSTRUCTION LTD,3730627,2012030.31
MOJ,NOMS,10/21/2010,Contracted-out Probation Trusts,Leicestershire Probation Trust,LEICESTERSHIRE&RUTLAND PROBATION TRUST,3742877,1201423
MOJ,NOMS,10/21/2010,Contracted-out Escorts,Prisoner Escort & Custody Service (PECS),G4S CARE & JUSTICE SERVICES LTD,3724927,675150.87
MOJ,NOMS,10/21/2010,Contracted-out Escorts,Prisoner Escort & Custody Service (PECS),G4S CARE & JUSTICE SERVICES LTD,3724309,553778.5
MOJ,NOMS,10/21/2010,Contracted-out Escorts,Prisoner Escort & Custody Service (PECS),G4S CARE & JUSTICE SERVICES LTD,3724924,508348.33
MOJ,NOMS,10/21/2010,WIP - Acquisitions,Estates Capacity,INTERSERVE PROJECT SERVICES LTD,3744472,447110.28
MOJ,NOMS,10/21/2010,Prison Shop Cost of Sales,Chief Operating Officers Office,EXEL EUROPE1 LTD,3744385,340531.1
MOJ,NOMS,10/21/2010,Training and Further Education Courses,Learning and Development Group,NEWCASTLE COLLEGE,3742445,339607.72
MOJ,NOMS,10/21/2010,Prison Shop Cost of Sales (No VAT),Chief Operating Officers Office,EXEL EUROPE1 LTD,3744385,182284.61
MOJ,NOMS,10/21/2010,Contracted-out Building Maintenance,Brixton,CARILLION CONSTRUCTION LTD,3729931,168786.32
MOJ,NOMS,10/21/2010,Contracted-out Resettlement Services,NOMS CFO,LONDON PROBATION TRUST,3737460,147755.4
MOJ,NOMS,10/21/2010,Subsistence,Phoenix HR,CALDER CONFERENCE,3745725,104237.02
MOJ,NOMS,10/21/2010,Payments to voluntary Organisations,East of England Regional NOMS Office,ORMISTON CHILDREN & FAMILIES TRUST,3734274,62802
MOJ,NOMS,10/21/2010,Water and Sewage,Wealstun,YORKSHIRE WATER SERVICES LTD,3719634,53451.29
MOJ,NOMS,10/21/2010,Contracted-out Probation Trusts,Liverpool,MERSEYSIDE PROBATION TRUST,3692975,35041.14
MOJ,NOMS,10/21/2010,WIP - Professional Fees,Estates Capacity,TURNER & TOWNSEND,3716606,33089.19
MOJ,NOMS,10/21/2010,Secondments,NOMIS Programme,SURREY & SUSSEX PROBATION TRUST,3744514,28180.76
MOJ,NOMS,10/21/2010,Contracted-out Other Services,East of England Regional NOMS Office,CLEARSPRINGS MANAGEMENT LTD,3730534,26430.15
MOJ,NOMS,10/21/2010,Counselling & Advisory Costs,Liverpool,LIFELINE PROJECT,3744336,26411.78
MOJ,NOMS,10/21/2010,Water and Sewage,Wealstun,YORKSHIRE WATER SERVICES LTD,3719576,-62581.78
MOJ,NOMS,10/25/2010,Contracted-out Probation Trusts,Lancashire Probation Trust,LANCASHIRE PROBATION TRUST,3746177,2000000
MOJ,NOMS,10/25/2010,Contracted-out Prison Shop,Chief Operating Officers Office,EXEL EUROPE1 LTD,3749388,1126995
MOJ,NOMS,10/25/2010,Contracted-out Probation Trusts,Cambridgeshire Probation Trust,CAMBRIDGESHIRE & PETERBOROUGH PROBATION TRUST,3746210,850803.57
MOJ,NOMS,10/25/2010,Contracted-out Resettlement Services,NOMS CFO,THE MANCHESTER COLLEGE,3746079,389382.78
MOJ,NOMS,10/25/2010,Contract IT Maintenance,MoJ ICT,SUNGARD PUBLIC SECTOR LTD,3724971,207445
MOJ,NOMS,10/25/2010,Contracted-out Resettlement Services,NOMS CFO,THE MANCHESTER COLLEGE,3746080,129576
MOJ,NOMS,10/25/2010,Contracted-out Resettlement Services,NOMS CFO,MERSEYSIDE PROBATION TRUST,3740547,83408.83
MOJ,NOMS,10/25/2010,Office Equipment Purchases Under 10k,Buckley Hall,THE MANCHESTER COLLEGE,3730364,63000
MOJ,NOMS,10/25/2010,WIP - Professional Fees,Estates Capacity,ATKINS LTD,3716365,62811.86
MOJ,NOMS,10/25/2010,Office Equipment Purchases Under 10k,NOMIS Programme,HEWLETT-PACKARD LTD,3700345,53626.54
MOJ,NOMS,10/25/2010,Contract IT Maintenance,MoJ ICT,SUNGARD PUBLIC SECTOR LTD,3724970,49055.03
MOJ,NOMS,10/25/2010,Water and Sewage,Lancaster Farms,UNITED UTILITIES WATER PLC,3665964,42465.16
MOJ,NOMS,10/25/2010,Contract IT Maintenance,MoJ ICT,TRIBAL CONSULTING,3732520,42375
MOJ,NOMS,10/25/2010,Secondments,Public Protection and Mental Health Group,SOUTH YORKSHIRE PROBATION TRUST,3747916,28887.23
MOJ,NOMS,10/25/2010,Incentive Schemes,Hull,CENTRAL OFFICE OF INFORMATION,3746429,25000
MOJ,NOMS,10/25/2010,Water and Sewage,Lancaster Farms,UNITED UTILITIES WATER PLC,3680060,-48935.78
MOJ,NOMS,10/25/2010,Water and Sewage,Featherstone,SEVERN TRENT WATER LTD,3749379,-61740.66
MOJ,NOMS,10/26/2010,Contracted-out Computer Services,Quantum,HP ENTERPRISE SERVICES UK LTD,3749522,2431077.33
MOJ,NOMS,10/26/2010,Contracted-out Escorts,Prisoner Escort & Custody Service (PECS),RELIANCE SECURE TASK MANAGEMENT,3732536,1016202.86
MOJ,NOMS,10/26/2010,Contracted-out Resettlement Services,Newday ESF,WORKING LINKS,3748046,253145.45
MOJ,NOMS,10/26/2010,Contracted-out Other Services,Quantum,HP ENTERPRISE SERVICES UK LTD,3749522,242696.22
MOJ,NOMS,10/26/2010,Contracted-out Other Services,Quantum,HP ENTERPRISE SERVICES UK LTD,3749568,177278.69
MOJ,NOMS,10/26/2010,Contracted-out Other Services,Quantum,HP ENTERPRISE SERVICES UK LTD,3749535,150136.17
MOJ,NOMS,10/26/2010,Contracted-out Computer Services,Quantum,HP ENTERPRISE SERVICES UK LTD,3749528,90075.64
MOJ,NOMS,10/26/2010,Contracted-out Other Services,Quantum,HP ENTERPRISE SERVICES UK LTD,3749515,70336.16
MOJ,NOMS,10/26/2010,Contracted-out Computer Services,Quantum,HP ENTERPRISE SERVICES UK LTD,3749546,70100.3
MOJ,NOMS,10/26/2010,Travel - Non-Taxable,Phoenix HR,CARLSON WAGONLIT TRAVEL,3749394,69029.2
MOJ,NOMS,10/26/2010,Water and Sewage,Hewell,SEVERN TRENT WATER LTD,3749416,60037.13
MOJ,NOMS,10/26/2010,Contracted-out Computer Services,Quantum,HP ENTERPRISE SERVICES UK LTD,3749564,59998.6
MOJ,NOMS,10/26/2010,Contracted-out Computer Services,Quantum,HP ENTERPRISE SERVICES UK LTD,3749465,52305.7
MOJ,NOMS,10/26/2010,Raw Materials Issued,Offender Employment Skills & Services Group,AMARYLLIS (AFM),3747154,50058.43
MOJ,NOMS,10/26/2010,Contracted-out Computer Services,Quantum,HP ENTERPRISE SERVICES UK LTD,3749531,48094.17
MOJ,NOMS,10/26/2010,WIP - Professional Fees,Estates Capacity,ATKINS LTD,3603075,41688.24
MOJ,NOMS,10/26/2010,Contracted-out Computer Services,Quantum,HP ENTERPRISE SERVICES UK LTD,3749532,38852
MOJ,NOMS,10/26/2010,Miscellaneous,Director of HRs Office & Strategic Planning,THE BUTLER TRUST,3749162,37500
MOJ,NOMS,10/26/2010,Contracted-out Other Services,Wealstun,COFATHEC ENERGY PFI LTD,3700018,35614.98
MOJ,NOMS,10/26/2010,Contracted-out Probation Trusts,Dorset Probation Trust,DORSET PROBATION TRUST,3746197,35509
MOJ,NOMS,10/26/2010,Contracted-out Computer Services,Quantum,HP ENTERPRISE SERVICES UK LTD,3749427,33770.11
MOJ,NOMS,10/26/2010,Contracted-out Other Services,Quantum,HP ENTERPRISE SERVICES UK LTD,3749519,28310.03
MOJ,NOMS,10/26/2010,Contracted-out Other Services,Quantum,HP ENTERPRISE SERVICES UK LTD,3749539,27014.28
MOJ,NOMS,10/26/2010,Electricity,HMP Kennet,MERSEY CARE N H S TRUST,3726671,26469.44
MOJ,NOMS,10/26/2010,Contract IT Maintenance,MoJ ICT,HP ENTERPRISE SERVICES UK LTD,3748170,-1364300
MOJ,NOMS,10/27/2010,Contracted-out Electronic Monitoring,National Operations Group,SERCO LTD,3749786,3907141.92
MOJ,NOMS,10/27/2010,Contracted-out Escorts,Prisoner Escort & Custody Service (PECS),RELIANCE SECURE TASK MANAGEMENT,3732538,1991747.42
MOJ,NOMS,10/27/2010,Contract IT Maintenance,NOMS ICT,HP ENTERPRISE SERVICES UK LTD,3745669,1738541.36
MOJ,NOMS,10/27/2010,Contract IT Maintenance,Phoenix Shared Service Centre,HP ENTERPRISE SERVICES UK LTD,3753263,872300.29
MOJ,NOMS,10/27/2010,Contracted-out operation of prisons and detention centres,Wolds,G4S CARE & JUSTICE SERVICES LTD,3752214,750402.18
MOJ,NOMS,10/27/2010,Contracted-out Other Services,National Operations Group,HOME GROUP LTD (STONHAM),3730124,688368
MOJ,NOMS,10/27/2010,Contract IT Maintenance,Phoenix MSO,HP ENTERPRISE SERVICES UK LTD,3753263,427973.64
MOJ,NOMS,10/27/2010,WIP - Acquisitions,Estates Capacity,WATES CONSTRUCTION LTD,3743042,390582.93
MOJ,NOMS,10/27/2010,Contracted-out Probation Trusts,Durham Tees Valley Probation Trust,DURHAM TEES VALLEY PROBATION TRUST,3752029,327891.73
MOJ,NOMS,10/27/2010,WIP - Acquisitions,Estates Capacity,ISG REGIONS LTD,3751200,198384.65
MOJ,NOMS,10/27/2010,Contracted-out Probation Boards,Lincoln,LINCOLNSHIRE PROBATION TRUST,3750563,134820.37
MOJ,NOMS,10/27/2010,WIP - Acquisitions,Estates Capacity,KIER REGIONAL LTD,3751254,127189.05
MOJ,NOMS,10/27/2010,Probation - Approved Premisis,Public Protection and Mental Health Group,LANGLEY HOUSE TRUST,3753046,125100.08
MOJ,NOMS,10/27/2010,Contract IT Maintenance,Learning and Development Group,HP ENTERPRISE SERVICES UK LTD,3753263,111043.77
MOJ,NOMS,10/27/2010,Contract IT Maintenance,MoJ ICT,SUNGARD PUBLIC SECTOR LTD,3752007,94751.34
MOJ,NOMS,10/27/2010,Contracted-out Other Services,National Operations Group,HOME GROUP LTD (STONHAM),3730125,92352
MOJ,NOMS,10/27/2010,Contract IT Maintenance,MoJ ICT,HP ENTERPRISE SERVICES UK LTD,3752158,83033.32
MOJ,NOMS,10/27/2010,Contracted-out Resettlement Services,NOMS CFO,SERCO LTD,3753011,80242.21
MOJ,NOMS,10/27/2010,Contracted-out Resettlement Services,NOMS CFO,SERCO LTD,3753008,80242.21
MOJ,NOMS,10/27/2010,"Books, Stationery & IT Consumables",Offender Employment Skills & Services Group,CARPENTER LTD,3749615,69838.96
MOJ,NOMS,10/27/2010,Clothing,Offender Employment Skills & Services Group,JIANGSU SAINTY CORP LTD,3753277,63000
MOJ,NOMS,10/27/2010,Contracted-out Catering Services,Phoenix Shared Service Centre,ESS SUPPORT SERVICES WORLDWIDE,3743840,60035.15
MOJ,NOMS,10/27/2010,Gas,Lincoln,CORONA ENERGY RETAIL 4 LTD,3749524,59204.89
MOJ,NOMS,10/27/2010,Probation - Approved Premisis,Public Protection and Mental Health Group,HESTIA HOUSING SUPPORT CO LTD REF BATTERSEA & STREATHAM,3753044,56750
MOJ,NOMS,10/27/2010,Probation - Approved Premisis,Public Protection and Mental Health Group,ELIZABETH FRY APPROVED PREMISES,3753041,56250
MOJ,NOMS,10/27/2010,Probation - Approved Premisis,Public Protection and Mental Health Group,RIPON HOUSE,3753052,56083.33
MOJ,NOMS,10/27/2010,Probation - Approved Premisis,Public Protection and Mental Health Group,WEST LONDON MISSION REF: KATHERINE HUGHES HOUSE,3753089,52333.33
MOJ,NOMS,10/27/2010,Probation - Approved Premisis,Public Protection and Mental Health Group,ST JOHN'S APPROVED PREMISES,3753068,51666.67
MOJ,NOMS,10/27/2010,Probation - Approved Premisis,Public Protection and Mental Health Group,ADELAIDE HOUSE,3753034,51166.67
MOJ,NOMS,10/27/2010,Counselling & Advisory Costs,Hewell,SOUTH STAFFORDSHIRE AND SHROPSHIRE HEALTHCARE NHS FOUNDATION TRUST,3750972,50833.18
MOJ,NOMS,10/27/2010,Probation - Approved Premisis,Public Protection and Mental Health Group,ST. VINCENT DE PAUL SOCIETY REF OZANAM HOUSE,3753059,50416.67
MOJ,NOMS,10/27/2010,Probation - Approved Premisis,Public Protection and Mental Health Group,CARDIGAN HOUSE APPROVED PREMISE,3753038,50250
MOJ,NOMS,10/27/2010,Probation - Approved Premisis,Public Protection and Mental Health Group,ASHLEY HOUSE,3753037,48583.33
MOJ,NOMS,10/27/2010,Probation - Approved Premisis,Public Protection and Mental Health Group,HESTIA HOUSING SUPPORT CO LTD REF BATTERSEA & STREATHAM,3753042,46583.33
MOJ,NOMS,10/27/2010,Probation - Approved Premisis,Public Protection and Mental Health Group,ST. VINCENT DE PAUL SOCIETY REF ST CHRISTOPHERS,3753086,46166.67
MOJ,NOMS,10/27/2010,Clothing,Offender Employment Skills & Services Group,JIANGSU SAINTY CORP LTD,3753282,39184.32
MOJ,NOMS,10/27/2010,Contracted-out Library,Exeter,DEVON COUNTY COUNCIL,3722798,37706.22
MOJ,NOMS,10/27/2010,WIP - Acquisitions,Estates Capacity,INTERSERVE PROJECT SERVICES LTD,3751152,32242
MOJ,NOMS,10/27/2010,Clothing,Offender Employment Skills & Services Group,JIANGSU SAINTY CORP LTD,3753285,31482
MOJ,NOMS,10/27/2010,Contracted-out Probation Boards,Warren Hill,SUFFOLK COUNTY COUNCIL,3751993,31029.72
MOJ,NOMS,10/27/2010,Counselling & Advisory Costs,IW Cluster,SOUTH STAFFORDSHIRE AND SHROPSHIRE HEALTHCARE NHS FOUNDATION TRUST,3750973,27085.46
MOJ,NOMS,10/27/2010,Contracted-out Plant and Equipment Maintenance,Wetherby,SANGWIN LIMITED,3752070,25937.01
MOJ,NOMS,10/28/2010,Contracted-out Probation Trusts,Cambridgeshire Probation Trust,CAMBRIDGESHIRE & PETERBOROUGH PROBATION TRUST,3746209,809803.57
MOJ,NOMS,10/28/2010,Contracted-out Probation Trusts,Littlehey,CAMBRIDGESHIRE & PETERBOROUGH PROBATION TRUST,3753525,198619
MOJ,NOMS,10/28/2010,Contracted-out Other Services,ROM - West Midlands,THE ASHA WOMEN'S CENTRE,3742160,135031
MOJ,NOMS,10/28/2010,Subsistence,Phoenix HR,CALDER CONFERENCE,3754372,98275.72
MOJ,NOMS,10/28/2010,Professional Subscriptions,Director of HRs Office & Strategic Planning,REED BUSINESS INFORMATION LTD,3749621,69252.15
MOJ,NOMS,10/28/2010,Subsistence,Phoenix HR,CALDER CONFERENCE,3754370,64414.75
MOJ,NOMS,10/28/2010,Counselling & Advisory Costs,Birmingham,SOUTH STAFFORDSHIRE AND SHROPSHIRE HEALTHCARE NHS FOUNDATION TRUST,3750964,39996.16
MOJ,NOMS,10/28/2010,Counselling & Advisory Costs,Eastwood Park,AVON & WILTSHIRE MENTAL HEALTH PARTNERSHIP N H S TRUST,3752139,38181
MOJ,NOMS,10/28/2010,Contracted-out Probation Trusts,Business and Service Development Group,STAFFORDSHIRE AND WEST MIDLANDS PROBATION TRUST,3741856,36528.53
MOJ,NOMS,10/28/2010,"Books, Stationery & IT Consumables",Offender Employment Skills & Services Group,BURLINGTON UNIFORMS LTD,3712055,30385.51
MOJ,NOMS,10/28/2010,Contracted-out Education,Dover,THE MANCHESTER COLLEGE,3750476,29722.35
MOJ,NOMS,10/28/2010,Counselling & Advisory Costs,Liverpool,LIFELINE PROJECT,3751692,26773
MOJ,NOMS,10/29/2010,Contracted-out Probation Trusts,Derbyshire Probation Trust,DERBYSHIRE PROBATION TRUST,3755985,1176250
MOJ,NOMS,10/29/2010,Contract IT Maintenance,NOMIS Programme,HP ENTERPRISE SERVICES UK LTD,3745668,1119799.1
MOJ,NOMS,10/29/2010,Rates and Ground Rents,Phoenix Shared Service Centre,DANMERC,3483896,906724
MOJ,NOMS,10/29/2010,WIP - Professional Fees,Estates Capacity,FAITHFUL + GOULD,3717016,267222.21
MOJ,NOMS,10/29/2010,Contracted-out Other Services,North East DOMS Office,TEES ESK AND WEAR VALLEYS NHS TRUST,3706749,217527.5
MOJ,NOMS,10/29/2010,WIP - Acquisitions,MoJ ICT,HP ENTERPRISE SERVICES UK LTD,3756141,134538.87
MOJ,NOMS,10/29/2010,Contracted-out Building Maintenance,Isis,CARILLION CONSTRUCTION LTD,3733124,120989.92
MOJ,NOMS,10/29/2010,Contracted-out Other Services,ROM - West Midlands,BRIGHTER FUTURES HOUSING ASSOCIATION LTD,3755569,117500
MOJ,NOMS,10/29/2010,WIP - Acquisitions,Estates Capacity,KIER REGIONAL LTD,3754900,81002.15
MOJ,NOMS,10/29/2010,Contracted-out Probation Trusts,Leyhill,AVON AND SOMERSET PROBATION TRUST,3749376,79298.66
MOJ,NOMS,10/29/2010,Contract IT Maintenance,Performance Information and Analysis Group,MOUCHEL MANAGEMENT CONSULTING LIMITED,3755916,71217
MOJ,NOMS,10/29/2010,Office Equipment Purchases Under 10k,NOMS Cymru Regional Services,MOUCHEL MANAGEMENT CONSULTING LIMITED,3746515,51438.17
MOJ,NOMS,10/29/2010,Contracted-out Catering Services,Cookham Wood,MEDWAY COUNCIL,3756165,49878
MOJ,NOMS,10/29/2010,Secondments,South East DOMS Office,SURREY & SUSSEX PROBATION TRUST,3744511,40425.34
MOJ,NOMS,10/29/2010,WIP - Acquisitions,Estates Capacity,HENRY BOOT CONSTRUCTION (U K) LTD,3754896,37558.88
MOJ,NOMS,10/29/2010,WIP - Professional Fees,Estates Capacity,WT PARTNERSHIP,3721763,36772.6
MOJ,NOMS,10/29/2010,Conference costs,Offender Assessment & Management Group,SHEFFIELD HALLAM UNIVERSITY,3637463,35622
MOJ,NOMS,10/29/2010,WIP - Professional Fees,Estates Capacity,FAITHFUL + GOULD,3716522,31215.26
MOJ,NOMS,10/29/2010,Contracted-out Probation Trusts,Business and Service Development Group,YORK AND NORTH YORKSHIRE PROBATION TRUST,3728740,30838.21
MOJ,NOMS,10/29/2010,Office Equipment Purchases Under 10k,Birmingham,BGL RIEBER LTD,3652464,29022.5
